[Event "36th Indian-ch U13 Open 2023"]
[Site "Secunderabad"]
[Date "2023.12.08"]
[Round "8.8"]
[White "Vandan Alankar Sawai"]
[Black "Reyan"]
[Result "1/2-1/2"]
[ECO "B36"]
[WhiteElo "1619"]
[BlackElo "1842"]
[Annotator "NA RC"]
[PlyCount "61"]
[EventDate "2023.12.04"]
[EventType "swiss"]
[EventCountry "IND"]
[SourceTitle "playchess.com"]
[Source "ChessBase"]
[SourceQuality "1"]
[TimeControl "5400+30"]

1. e4 {[%emt 0:00:15]} c5 {[%emt 0:00:05]} 2. Nf3 {[%emt 0:00:24]} Nc6 {[%emt 0:00:09]} 3. d4 {[%emt 0:00:09]} cxd4 {[%emt 0:00:05]} 4. Nxd4 {[%emt 0:00:08]} g6 {[%emt 0:00:10]} 5. c4 {[%emt 0:00:24]} Nf6 {[%emt 0:00:12]} 6. Nc3 {[%emt 0:00:10]} d6 {[%emt 0:00:18]} 7. Be2 {[%emt 0:00:34]} Nxd4 {[%emt 0:00:11]} 8. Qxd4 {[%emt 0:00:09]} Bg7 {[%emt 0:00:02]} 9. Be3 {[%emt 0:00:10]} O-O {[%emt 0:00:07]} 10. Qd2 {[%emt 0:00:05]} a5 {[%emt 0:00:06]} 11. O-O {[%emt 0:00:59]} a4 {[%emt 0:00:04]} 12. Rad1 {[%emt 0:02:25]} Qa5 {[%emt 0:04:16]} 13. Bd4 {[%emt 0:01:24]} Be6 {[%emt 0:00:57]} 14. f4 {[%emt 0:03:09]} Rfc8 {[%emt 0:01:29]} 15. b3 {[%emt 0:00:26]} axb3 {[%emt 0:05:26]} 16. axb3 {[%emt 0:00:07]} Kh8 {[%emt 1:00:01]} 17. f5 {[%emt 0:07:02]} gxf5 {[%emt 0:02:38]} 18. exf5 {[%emt 0:00:10]} Bd7 {[%emt 0:00:40]} 19. Qe3 {[%emt 0:01:41]} Re8 {[%emt 0:04:28]} 20. Nd5 {[%emt 0:02:22]} Nxd5 {[%emt 0:04:38]} 21. Bxg7+ {[%emt 0:00:07]} Kxg7 {[%emt 0:00:01]} 22. Rxd5 {[%emt 0:00:16]} Qa7 {[%emt 0:01:04]} 23. c5 {[%emt 0:12:00]} Bc6 {[%emt 0:00:30]} 24. f6+ {[%emt 0:27:48]} exf6 {[%emt 0:01:11]} 25. Rg5+ {[%emt 0:00:15]} fxg5 {[%emt 0:01:24]} 26. Qxg5+ {[%emt 0:02:19]} Kf8 {[%emt 0:00:16]} 27. Qh6+ {[%emt 0:08:57]} Kg8 {[%emt 0:00:11]} 28. Qg5+ {[%emt 0:01:07]} Kf8 {[%emt 0:00:01]} 29. Rxf7+ {[%emt 0:00:12]} Kxf7 {[%emt 0:00:10]} 30. Bh5+ {[%emt 0:00:06]} Ke6 {[%emt 0:00:16]} 31. Bg4+ {[%emt 0:00:05]} 1/2-1/2

[Event "36th Indian-ch U13 Open 2023"]
[Site "Secunderabad"]
[Date "2023.12.08"]
[Round "8.9"]
[White "Siddhanth Poonja"]
[Black "Aarav Saish Amonkar"]
[Result "1-0"]
[ECO "D02"]
[WhiteElo "1806"]
[BlackElo "1624"]
[Annotator "NA RC"]
[PlyCount "87"]
[EventDate "2023.12.04"]
[EventType "swiss"]
[EventCountry "IND"]
[SourceTitle "playchess.com"]
[Source "ChessBase"]
[SourceQuality "1"]
[TimeControl "5400+30"]

1. d4 {[%emt 0:00:30]} Nf6 {[%emt 0:00:41]} 2. Bf4 {[%emt 0:00:10]} c5 {[%emt 0:00:41]} 3. e3 {[%emt 0:00:08]} e6 {[%emt 0:00:46]} 4. Nf3 {[%emt 0:00:10]} Nc6 {[%emt 0:00:32]} 5. Nbd2 {[%emt 0:01:17]} d5 {[%emt 0:00:55]} 6. c3 {[%emt 0:00:22]} Be7 {[%emt 0:01:13] 6...cxd4 is setting a new trend.} 7. h3 {[%emt 0:02:15]} O-O {[%emt 0:00:53]} 8. Bd3 {[%emt 0:00:33]} Qb6 {[%emt 0:10:19]} 9. Rb1 {[%emt 0:08:39]} c4 {[%emt 0:08:52]} 10. Bc2 {[%emt 0:03:53] [#]} Qd8 $146 {[%emt 0:01:53]} ({Predecessor:} 10... Qa5 11. a3 b6 12. O-O b5 13. e4 dxe4 14. Nxe4 Nd5 15. Bg3 Rd8 16. Ne5 Nxe5 17. Bxe5 {0-1 Meth,A-Broszeit,J Rangliste 1600-1900 23407 2022}) 11. e4 {[%emt 0:10:53]} b5 {[%emt 0:03:53]} 12. a3 {[%emt 0:10:42]} a5 {[%emt 0:02:51]} 13. e5 {[%emt 0:11:10]} Nd7 {[%emt 0:05:42]} 14. h4 {[%emt 0:02:12]} g6 {[%emt 0:26:30]} 15. Rh3 {[%emt 0:16:26]} Kg7 {[%emt 0:07:18]} 16. h5 {[%emt 0:05:05]} Rh8 {[%emt 0:03:26]} 17. Rg3 {[%emt 0:03:15]} b4 {[%emt 0:05:10]} 18. Ra1 {[%emt 0:00:37]} bxc3 {[%emt 0:02:45]} 19. bxc3 {[%emt 0:00:43]} Rb8 {[%emt 0:00:33]} 20. Ng5 {[%emt 0:04:49]} Bxg5 {[%emt 0:04:50]} 21. Bxg5 {[%emt 0:00:53]} Qc7 {[%emt 0:00:54]} (21... Ne7 $142 22. Qg4 Rb2 23. Bf6+ Nxf6 24. exf6+ Kf8) 22. Qf3 {[%emt 0:00:47]} Ncxe5 {[%emt 0:01:02]} 23. Bf6+ {[%emt 0:02:10]} Nxf6 {[%emt 0:02:08]} 24. h6+ {[%emt 0:00:01]} Kf8 {[%emt 0:00:13]} 25. Qxf6 {[%emt 0:00:04]} Rg8 {[%emt 0:00:38]} 26. Qxe5 {[%emt 0:00:28]} Qxe5+ {[%emt 0:00:24]} 27. dxe5 {[%emt 0:00:01]} Bd7 {[%emt 0:01:01]} 28. Nf3 {[%emt 0:00:36]} Ke7 {[%emt 0:01:03]} 29. Ng5 {[%emt 0:00:43]} Rb2 {[%emt 0:02:31]} 30. Kd1 {[%emt 0:00:36]} Bc6 {[%emt 0:00:48]} 31. Rf3 {[%emt 0:00:14]} Rf8 {[%emt 0:00:49]} 32. Kc1 $18 {[%emt 0:00:58]} Rb6 {[%emt 0:00:34]} 33. Rf4 {[%emt 0:00:20]} a4 {[%emt 0:01:20]} 34. Rb1 {[%emt 0:00:31]} Ra6 {[%emt 0:00:16]} 35. Rb4 {[%emt 0:00:09]} Ra7 {[%emt 0:01:14]} 36. Nxh7 {[%emt 0:00:28]} Rh8 {[%emt 0:00:32]} 37. Ng5 {[%emt 0:00:05]} Kf8 {[%emt 0:00:22]} 38. Rb8+ {[%emt 0:00:05]} Be8 {[%emt 0:00:07]} 39. Bxg6 {[%emt 0:00:43]} Rxh6 {[%emt 0:00:36]} 40. Bxf7 {[%emt 0:00:16]} Rh1+ {[%emt 0:00:32]} 41. Kd2 {[%emt 0:00:03]} Ra1 {[%emt 0:00:17]} 42. Rxe8+ {[%emt 0:00:07]} Kg7 {[%emt 0:00:05]} 43. Rg8+ {[%emt 0:00:04]} Kh6 {[%emt 0:00:08]} 44. Rh4# {[%emt 0:00:16]} 1-0

[Event "36th Indian-ch U13 Open 2023"]
[Site "Secunderabad"]
[Date "2023.12.08"]
[Round "9.1"]
[White "Adharsh K"]
[Black "Sharnarthi Viresh"]
[Result "0-1"]
[ECO "B99"]
[WhiteElo "1831"]
[BlackElo "1850"]
[Annotator "NA COMBH"]
[PlyCount "64"]
[EventDate "2023.12.04"]
[EventType "swiss"]
[EventCountry "IND"]
[SourceTitle "playchess.com"]
[Source "ChessBase"]
[SourceQuality "1"]
[TimeControl "5400+30"]

1. e4 {[%emt 0:00:30]} c5 {[%emt 0:00:04]} 2. Nf3 {[%emt 0:00:04]} d6 {[%emt 0:00:02]} 3. d4 {[%emt 0:00:05]} cxd4 {[%emt 0:00:04]} 4. Nxd4 {[%emt 0:00:07]} Nf6 {[%emt 0:00:04]} 5. Nc3 {[%emt 0:00:04]} a6 {[%emt 0:00:02]} 6. Bg5 {[%emt 0:00:06]} e6 {[%emt 0:00:04]} 7. f4 {[%emt 0:00:08]} h6 {[%emt 0:00:05]} 8. Bh4 {[%emt 0:00:31]} Be7 {[%emt 0:00:13]} 9. Qf3 {[%emt 0:00:22]} Qc7 {[%emt 0:00:05]} 10. O-O-O {[%emt 0:00:06]} Nbd7 {[%emt 0:00:06]} 11. Bd3 {[%emt 0:01:27]} g5 {[%emt 0:00:05]} 12. fxg5 {[%emt 0:00:32]} Ne5 {[%emt 0:00:01]} 13. Qe2 {[%emt 0:00:56]} Nfg4 {[%emt 0:00:06]} 14. h3 {[%emt 0:04:07]} hxg5 {[%emt 0:00:06]} 15. Bg3 {[%emt 0:00:04]} Nf6 {[%emt 0:06:20]} 16. Nf3 {[%emt 0:17:16]} Nh5 {[%emt 0:09:12]} 17. Bh2 {[%emt 0:05:09]} b5 {[%emt 0:03:37]} 18. a3 {[%emt 0:03:28]} Rb8 {[%emt 0:00:39]} 19. Rhf1 {[%emt 0:21:28]} b4 {[%emt 0:02:18]} 20. axb4 {[%emt 0:00:06]} Rxb4 {[%emt 0:00:19]} 21. Bxa6 {[%emt 0:19:28]} Bxa6 {[%emt 0:15:47]} 22. Qxa6 {[%emt 0:00:06]} O-O {[%emt 0:00:15]} 23. Qe2 {[%emt 0:02:17]} Nc4 {[%emt 0:02:29]} 24. Rd4 {[%emt 0:04:20]} Rc8 {[%emt 0:12:02]} 25. Nd2 {[%emt 0:03:58]} Nxd2 {[%emt 0:00:12]} 26. Qxd2 {[%emt 0:16:45]} Rbb8 {[%emt 0:05:18]} 27. Bxd6 {[%emt 0:00:00]} Bxd6 {[%emt 0:00:06]} 28. Rxd6 {[%emt 0:00:00]} Qa5 {[%emt 0:00:12]} 29. Qd4 {[%emt 0:00:10]} Rb4 {[%emt 0:09:55]} 30. Qf2 {[%emt 0:01:07]} Nf4 {[%emt 0:00:06]} 31. Nb1 {[%emt 0:00:34]} Qe5 {[%emt 0:00:14]} 32. Rd7 {[%emt 0:00:38]} Qxb2+ {[%emt 0:00:12]} 0-1

[Event "36th Indian-ch U13 Open 2023"]
[Site "Secunderabad"]
[Date "2023.12.08"]
[Round "9.2"]
[White "Sushanth Vaman Shetty"]
[Black "Venkat, Raghav"]
[Result "0-1"]
[ECO "C69"]
[WhiteElo "1620"]
[BlackElo "2205"]
[Annotator "RC"]
[PlyCount "100"]
[EventDate "2023.12.04"]
[EventType "swiss"]
[EventCountry "IND"]
[SourceTitle "playchess.com"]
[Source "ChessBase"]
[SourceQuality "1"]
[TimeControl "5400+30"]

1. e4 {[%emt 1:31:00]} e5 {[%emt 0:00:20]} 2. Nf3 {[%emt 0:00:00]} Nc6 {[%emt 0:00:05]} 3. Bb5 {[%emt 0:00:00]} a6 {[%emt 0:00:05]} 4. Bxc6 {[%emt 0:00:00]} dxc6 {[%emt 0:00:05]} 5. O-O {[%emt 0:00:00]} f6 {[%emt 0:00:23]} 6. d4 {[%emt 0:00:00]} exd4 {[%emt 0:00:48]} 7. Nxd4 {[%emt 0:00:00]} c5 {[%emt 0:04:56]} 8. Nb3 {[%emt 0:00:00]} Qxd1 {[%emt 0:00:06]} 9. Rxd1 {[%emt 0:00:00]} Bg4 {[%emt 0:00:21]} 10. f3 {[%emt 0:00:00]} Be6 {[%emt 0:00:04]} 11. Nc3 {[%emt 0:00:00]} Bd6 {[%emt 0:03:20]} 12. Be3 {[%emt 0:00:00]} b6 {[%emt 0:00:55]} 13. a4 {[%emt 0:00:00]} O-O-O {[%emt 0:12:50]} 14. a5 {[%emt 0:00:00]} Kb7 {[%emt 0:02:01]} 15. axb6 {[%emt 0:00:00]} cxb6 {[%emt 0:00:14]} 16. Bf4 {[%emt 0:00:00]} Be7 {[%emt 0:05:08]} 17. Nd5 {[%emt 0:00:00]} Bxd5 {[%emt 0:03:08]} 18. exd5 {[%emt 0:00:00]} c4 {[%emt 0:00:34]} 19. Nd2 {[%emt 0:00:00]} Bc5+ {[%emt 0:15:09]} 20. Kh1 {[%emt 0:00:00]} Ne7 {[%emt 0:00:54]} 21. Nxc4 {[%emt 0:00:00]} Nxd5 {[%emt 0:00:25]} 22. Bd6 {[%emt 0:00:00]} Bxd6 {[%emt 0:00:29]} 23. Rxd5 {[%emt 0:00:00]} Bc5 {[%emt 0:02:22]} 24. Rad1 {[%emt 0:00:00]} Rxd5 {[%emt 0:00:07]} 25. Rxd5 {[%emt 0:00:00]} Kc6 {[%emt 0:00:40]} 26. Rd2 {[%emt 0:00:00]} Re8 {[%emt 0:05:10]} 27. g4 {[%emt 0:00:00]} Re6 {[%emt 0:12:45]} 28. b3 {[%emt 0:00:00]} Kb5 {[%emt 0:01:10]} 29. Rd7 {[%emt 0:00:00]} g5 {[%emt 0:02:48]} 30. Rxh7 {[%emt 0:00:00]} Kb4 {[%emt 0:00:34]} 31. Nb2 {[%emt 0:00:00]} Re1+ {[%emt 0:01:36]} 32. Kg2 {[%emt 0:00:00]} Re2+ {[%emt 0:00:05]} 33. Kf1 {[%emt 0:00:00]} Rxc2 {[%emt 0:00:07]} 34. Nd3+ {[%emt 0:00:00]} Kxb3 {[%emt 0:00:16]} 35. h4 {[%emt 0:00:00]} gxh4 {[%emt 0:00:30]} 36. Rxh4 {[%emt 0:00:00]} a5 {[%emt 0:00:38]} 37. Ke1 {[%emt 0:00:00]} a4 {[%emt 0:01:36]} 38. Kd1 {[%emt 0:00:00]} Be3 {[%emt 0:03:35]} 39. g5 {[%emt 0:00:00]} Rd2+ {[%emt 0:01:36]} 40. Ke1 {[%emt 0:00:00]} Rxd3 {[%emt 0:00:10]} 41. Ke2 {[%emt 0:00:00]} Bxg5 {[%emt 0:00:29]} 42. Kxd3 {[%emt 0:00:00]} Bxh4 {[%emt 0:00:06]} 43. f4 {[%emt 0:00:00]} a3 {[%emt 0:00:07]} 44. Ke4 {[%emt 0:00:00]} a2 {[%emt 0:00:04]} 45. Kf5 {[%emt 0:00:00]} a1=Q {[%emt 0:00:12]} 46. Kg6 {[%emt 0:00:00]} Qg1+ {[%emt 0:00:35]} 47. Kh7 {[%emt 0:00:00]} f5 {[%emt 0:00:21]} 48. Kh6 {[%emt 0:00:00]} Qg8 {[%emt 0:00:28]} 49. Kh5 {[%emt 0:00:00]} Qg7 {[%emt 0:00:12]} 50. Kxh4 {[%emt 0:00:00]} Qg4# {[%emt 0:00:06]} 0-1

[Event "36th Indian-ch U13 Open 2023"]
[Site "Secunderabad"]
[Date "2023.12.08"]
[Round "9.3"]
[White "Vivaan Vijay Saraogi"]
[Black "Arnav Mahesh Koli"]
[Result "1/2-1/2"]
[ECO "B56"]
[WhiteElo "1982"]
[BlackElo "1769"]
[Annotator "RC"]
[PlyCount "110"]
[EventDate "2023.12.04"]
[EventType "swiss"]
[EventCountry "IND"]
[SourceTitle "playchess.com"]
[Source "ChessBase"]
[SourceQuality "1"]
[TimeControl "5400+30"]

1. e4 {[%emt 0:00:01]} c5 {[%emt 0:00:07]} 2. Nf3 {[%emt 0:00:04]} d6 {[%emt 0:00:19]} 3. d4 {[%emt 0:00:12]} cxd4 {[%emt 0:00:01]} 4. Nxd4 {[%emt 0:00:01]} Nf6 {[%emt 0:00:22]} 5. Nc3 {[%emt 0:00:05]} e5 {[%emt 0:00:18]} 6. Nf3 {[%emt 0:03:40]} h6 {[%emt 0:01:24]} 7. Bc4 {[%emt 0:01:03]} Nc6 {[%emt 0:00:39]} 8. h3 {[%emt 0:03:34]} Be6 {[%emt 0:00:11]} 9. Bb3 {[%emt 0:01:13]} Qd7 {[%emt 0:00:41]} 10. Be3 {[%emt 0:08:21]} Be7 {[%emt 0:00:14]} 11. Qe2 {[%emt 0:03:58]} O-O {[%emt 0:01:07]} 12. O-O-O {[%emt 0:00:09]} Bxb3 {[%emt 0:15:21]} 13. axb3 {[%emt 0:02:13]} Qc7 {[%emt 0:01:27]} 14. Kb1 {[%emt 0:20:17]} Rfc8 {[%emt 0:02:38]} 15. g4 {[%emt 0:21:07]} Nb4 {[%emt 0:12:24]} 16. Qb5 {[%emt 0:15:21]} Nxc2 {[%emt 0:09:23]} 17. Kxc2 {[%emt 0:00:15]} Nxe4 {[%emt 0:00:07]} 18. Qc4 {[%emt 0:04:59]} Qxc4 {[%emt 0:03:33]} 19. bxc4 {[%emt 0:00:01]} Rxc4 {[%emt 0:00:01]} 20. Kd3 {[%emt 0:00:54]} Nxc3 {[%emt 0:00:49]} 21. Kxc4 {[%emt 0:00:19]} Rc8+ {[%emt 0:00:09]} 22. Kb3 {[%emt 0:00:08]} Nxd1 {[%emt 0:00:04]} 23. Rxd1 {[%emt 0:00:01]} b6 {[%emt 0:00:21]} 24. Rc1 {[%emt 0:02:24]} Rxc1 {[%emt 0:00:47]} 25. Bxc1 {[%emt 0:00:02]} Kf8 {[%emt 0:00:01]} 26. Kc4 {[%emt 0:00:15]} Ke8 {[%emt 0:00:20]} 27. Kb5 {[%emt 0:01:14]} Kd7 {[%emt 0:00:08]} 28. Ka6 {[%emt 0:01:49]} Kc6 {[%emt 0:00:09]} 29. Kxa7 {[%emt 0:00:33]} f6 {[%emt 0:00:14]} 30. Nh4 {[%emt 0:02:27]} d5 {[%emt 0:02:10]} 31. Nf5 {[%emt 0:00:31]} Bf8 {[%emt 0:00:33]} 32. h4 {[%emt 0:08:23]} d4 {[%emt 0:01:12]} 33. f3 {[%emt 0:00:54]} Kc5 {[%emt 0:00:33]} 34. b3 {[%emt 0:00:31]} Kb4 {[%emt 0:00:15]} 35. Kxb6 {[%emt 0:00:11]} Kxb3 {[%emt 0:00:00]} 36. Bd2 {[%emt 0:00:34]} Kc2 {[%emt 0:00:25]} 37. Ba5 {[%emt 0:00:21]} Kd3 {[%emt 0:00:34]} 38. h5 {[%emt 0:00:23]} Ke2 {[%emt 0:00:15]} 39. Nh4 {[%emt 0:00:02]} f5 {[%emt 0:01:05]} 40. Kc6 {[%emt 0:01:27]} fxg4 {[%emt 0:01:18]} 41. fxg4 {[%emt 0:00:01]} d3 {[%emt 0:00:00]} 42. Kd5 {[%emt 0:00:29]} Be7 {[%emt 0:00:57]} 43. Ng6 {[%emt 0:00:41]} Bd8 {[%emt 0:00:01]} 44. Bb4 {[%emt 0:00:50]} d2 {[%emt 0:00:48]} 45. Bxd2 {[%emt 0:00:02]} Kxd2 {[%emt 0:00:01]} 46. Kxe5 {[%emt 0:00:54]} Ke3 {[%emt 0:00:10]} 47. Kf5 {[%emt 0:00:19]} Bf6 {[%emt 0:00:13]} 48. Nf8 {[%emt 0:00:39]} Kf3 {[%emt 0:00:22]} 49. Ne6 {[%emt 0:00:33]} Kg3 {[%emt 0:00:18]} 50. Nc5 {[%emt 0:00:24]} Kh4 {[%emt 0:01:37]} 51. Ne4 {[%emt 0:00:12]} Bg5 {[%emt 0:01:10]} 52. Nc5 {[%emt 0:00:45]} Kg3 {[%emt 0:00:53]} 53. Nd3 {[%emt 0:00:39]} Bf6 {[%emt 0:00:40]} 54. Nf4 {[%emt 0:00:15]} Kf3 {[%emt 0:02:05]} 55. Ne6 {[%emt 0:00:34]} Kg3 {[%emt 0:02:26]} 1/2-1/2

[Event "36th Indian-ch U13 Open 2023"]
[Site "Secunderabad"]
[Date "2023.12.08"]
[Round "9.4"]
[White "Vihaan Dumir"]
[Black "Gaikwad Manas"]
[Result "1/2-1/2"]
[ECO "B23"]
[WhiteElo "1798"]
[BlackElo "1916"]
[Annotator "RC"]
[PlyCount "63"]
[EventDate "2023.12.04"]
[EventType "swiss"]
[EventCountry "IND"]
[SourceTitle "playchess.com"]
[Source "ChessBase"]
[SourceQuality "1"]
[TimeControl "5400+30"]

1. e4 {[%emt 0:00:01]} c5 {[%emt 0:00:06]} 2. Nc3 {[%emt 0:00:04]} a6 {[%emt 0:00:31]} 3. f4 {[%emt 0:00:06]} b5 {[%emt 0:00:04]} 4. g3 {[%emt 0:00:07]} Bb7 {[%emt 0:00:04]} 5. Bg2 {[%emt 0:00:06]} e6 {[%emt 0:00:03]} 6. d3 {[%emt 0:00:29]} b4 {[%emt 0:00:05]} 7. Nce2 {[%emt 0:00:06]} d5 {[%emt 0:00:10]} 8. e5 {[%emt 0:02:52]} h5 {[%emt 0:00:04]} 9. h3 {[%emt 0:00:44]} Nh6 {[%emt 0:00:43]} 10. Be3 {[%emt 0:06:07]} Qc7 {[%emt 0:02:26]} 11. Bf2 {[%emt 0:04:01]} Be7 {[%emt 0:06:50]} 12. Nf3 {[%emt 0:01:51]} O-O {[%emt 0:01:49]} 13. Qd2 {[%emt 0:03:57]} Nd7 {[%emt 0:02:41]} 14. O-O {[%emt 0:07:26]} a5 {[%emt 0:02:39]} 15. c3 {[%emt 0:00:51]} bxc3 {[%emt 0:01:29]} 16. bxc3 {[%emt 0:00:08]} a4 {[%emt 0:00:02]} 17. Nh2 {[%emt 0:03:11]} f6 {[%emt 0:06:54]} 18. d4 {[%emt 0:01:09]} f5 {[%emt 0:20:12]} 19. Bf3 {[%emt 0:01:07]} Nb6 {[%emt 0:01:25]} 20. Bxh5 {[%emt 0:04:31]} Nc4 {[%emt 0:03:12]} 21. Qe1 {[%emt 0:01:49]} Kh7 {[%emt 0:05:01]} 22. Bf3 {[%emt 0:02:08]} cxd4 {[%emt 0:00:23]} 23. Nxd4 {[%emt 0:01:29]} Qd7 {[%emt 0:02:24]} 24. h4 {[%emt 0:26:21]} Ba6 {[%emt 0:03:37]} 25. Be2 {[%emt 0:01:16]} Rfb8 {[%emt 0:08:18]} 26. g4 {[%emt 0:07:08]} Rb2 {[%emt 0:02:05]} 27. Rd1 {[%emt 0:08:16]} Na3 {[%emt 0:10:23]} 28. Rd2 {[%emt 0:02:30]} Rb1 {[%emt 0:05:46]} 29. Rd1 {[%emt 0:00:37]} Rb2 {[%emt 0:00:09]} 30. Rd2 {[%emt 0:00:04]} Rb1 {[%emt 0:00:36]} 31. Rd1 {[%emt 0:00:04]} Rb2 {[%emt 0:00:22]} 32. Rd2 {[%emt 0:00:04]} 1/2-1/2

[Event "36th Indian-ch U13 Open 2023"]
[Site "Secunderabad"]
[Date "2023.12.08"]
[Round "9.5"]
[White "Sriram Adarsh Uppala"]
[Black "Sherla Prathamesh"]
[Result "1-0"]
[ECO "D00"]
[WhiteElo "1902"]
[BlackElo "1726"]
[Annotator "RC"]
[PlyCount "95"]
[EventDate "2023.12.04"]
[EventType "swiss"]
[EventCountry "IND"]
[SourceTitle "playchess.com"]
[Source "ChessBase"]
[SourceQuality "1"]
[TimeControl "5400+30"]

1. d4 {[%emt 0:00:03]} Nf6 {[%emt 0:00:57]} 2. Nc3 {[%emt 0:00:10]} d5 {[%emt 0:00:16]} 3. Bf4 {[%emt 0:00:06]} g6 {[%emt 0:00:15]} 4. e3 {[%emt 0:00:04]} Bg7 {[%emt 0:00:06]} 5. h4 {[%emt 0:00:03]} h5 {[%emt 0:00:09]} 6. Nf3 {[%emt 0:00:03]} O-O {[%emt 0:00:26]} 7. Ne5 {[%emt 0:00:07]} c5 {[%emt 0:02:30]} 8. Qd2 {[%emt 0:00:26]} Nc6 {[%emt 0:01:08]} 9. f3 {[%emt 0:00:04]} cxd4 {[%emt 0:04:17]} 10. exd4 {[%emt 0:00:04]} Bf5 {[%emt 0:01:50]} 11. Bb5 {[%emt 0:00:05]} Rc8 {[%emt 0:05:59]} 12. Bxc6 {[%emt 0:00:03]} bxc6 {[%emt 0:00:12]} 13. Na4 {[%emt 0:00:03]} Nd7 {[%emt 0:03:41]} 14. Nxd7 {[%emt 0:00:04]} Bxd7 {[%emt 0:01:13]} 15. Nc5 {[%emt 0:00:25]} Re8 {[%emt 0:02:57]} 16. O-O-O {[%emt 0:00:08]} e5 {[%emt 0:11:24]} 17. Bxe5 {[%emt 0:02:06]} Rxe5 {[%emt 0:05:54]} 18. dxe5 {[%emt 0:00:20]} Bxe5 {[%emt 0:00:17]} 19. Nxd7 {[%emt 0:07:03]} Qxd7 {[%emt 0:00:27]} 20. c3 {[%emt 0:01:04]} Qc7 {[%emt 0:05:21]} 21. Kb1 {[%emt 0:02:59]} Rb8 {[%emt 0:00:28]} 22. g4 {[%emt 0:02:47]} Qa5 {[%emt 0:03:28]} 23. Ka1 {[%emt 0:01:36]} hxg4 {[%emt 0:07:04]} 24. h5 {[%emt 0:02:07]} d4 {[%emt 0:07:24]} 25. hxg6 {[%emt 0:07:04]} fxg6 {[%emt 0:13:09]} 26. Qg5 {[%emt 0:02:19]} Qb5 {[%emt 0:03:56]} 27. Qxg6+ {[%emt 0:01:40]} Bg7 {[%emt 0:00:33]} 28. Rd2 {[%emt 0:00:08]} g3 {[%emt 0:06:53]} 29. cxd4 {[%emt 0:00:21]} Qb4 {[%emt 0:04:33]} 30. Qxg3 {[%emt 0:00:12]} Re8 {[%emt 0:02:45]} 31. Qg5 {[%emt 0:02:15]} Qd6 {[%emt 0:04:19]} 32. Rg1 {[%emt 0:00:20]} Re7 {[%emt 0:00:35]} 33. Rdg2 {[%emt 0:00:16]} Qb4 {[%emt 0:02:01]} 34. Qxe7 {[%emt 0:00:12]} Qxe7 {[%emt 0:00:09]} 35. Rxg7+ {[%emt 0:00:04]} Qxg7 {[%emt 0:00:17]} 36. Rxg7+ {[%emt 0:00:04]} Kxg7 {[%emt 0:00:06]} 37. Kb1 {[%emt 0:00:08]} Kf6 {[%emt 0:00:04]} 38. Kc2 {[%emt 0:00:05]} Kf5 {[%emt 0:00:05]} 39. Kd3 {[%emt 0:00:05]} Kf4 {[%emt 0:00:04]} 40. b4 {[%emt 0:00:05]} a6 {[%emt 0:00:09]} 41. a4 {[%emt 0:00:05]} Kxf3 {[%emt 0:00:05]} 42. b5 {[%emt 0:00:04]} axb5 {[%emt 0:00:15]} 43. axb5 {[%emt 0:00:06]} cxb5 {[%emt 0:00:05]} 44. d5 {[%emt 0:00:04]} b4 {[%emt 0:00:05]} 45. d6 {[%emt 0:00:02]} b3 {[%emt 0:00:02]} 46. d7 {[%emt 0:00:03]} b2 {[%emt 0:00:06]} 47. Kc2 {[%emt 0:00:03]} b1=Q+ {[%emt 0:00:15]} 48. Kxb1 {[%emt 1:16:45]} 1-0

[Event "36th Indian-ch U13 Open 2023"]
[Site "Secunderabad"]
[Date "2023.12.08"]
[Round "9.6"]
[White "Challa Saharsha"]
[Black "Mrinmoy Rajkhowa"]
[Result "1-0"]
[ECO "D00"]
[WhiteElo "1674"]
[BlackElo "1840"]
[Annotator "NA COMBH"]
[PlyCount "100"]
[EventDate "2023.12.04"]
[EventType "swiss"]
[EventCountry "IND"]
[SourceTitle "playchess.com"]
[Source "ChessBase"]
[SourceQuality "1"]
[TimeControl "5400+30"]

1. d4 {[%emt 0:00:19]} Nf6 {[%emt 0:00:07]} 2. Nc3 {[%emt 0:00:06]} d5 {[%emt 0:00:29]} 3. Bf4 {[%emt 0:00:35]} g6 {[%emt 0:01:23]} 4. e3 {[%emt 0:00:13]} Bg7 {[%emt 0:00:32]} 5. h4 {[%emt 0:00:19]} c5 {[%emt 0:14:03]} 6. Nf3 {[%emt 0:05:17]} Bg4 {[%emt 0:07:29]} 7. Be2 {[%emt 0:02:46]} Nc6 {[%emt 0:04:46]} 8. Ne5 {[%emt 0:04:08]} Bxe2 {[%emt 0:00:52]} 9. Qxe2 {[%emt 0:00:20]} Nh5 {[%emt 0:12:52]} 10. Nxc6 {[%emt 0:04:19]} bxc6 {[%emt 0:08:08]} 11. Be5 {[%emt 0:03:37]} Bxe5 {[%emt 0:03:43]} 12. dxe5 {[%emt 0:00:41]} Qb8 {[%emt 0:00:17]} 13. Qa6 {[%emt 0:07:24]} O-O {[%emt 0:02:56]} 14. O-O-O {[%emt 0:00:22]} Qxe5 {[%emt 0:05:15]} 15. Qxc6 {[%emt 0:00:17]} d4 {[%emt 0:01:47]} 16. Qe4 {[%emt 0:01:41]} Qxe4 {[%emt 0:09:37]} 17. Nxe4 {[%emt 0:00:03]} dxe3 {[%emt 0:01:28]} 18. fxe3 {[%emt 0:00:29]} Rfc8 {[%emt 0:00:20]} 19. Rd7 {[%emt 0:00:32]} f5 {[%emt 0:01:21]} 20. Nc3 {[%emt 0:05:07]} Kf7 {[%emt 0:00:24]} 21. e4 {[%emt 0:02:27]} Nf6 {[%emt 0:04:00]} 22. Rb7 {[%emt 0:00:56]} fxe4 {[%emt 0:03:31]} 23. Re1 {[%emt 0:00:32]} Rc6 {[%emt 0:02:15]} 24. Nxe4 {[%emt 0:02:00]} Nxe4 {[%emt 0:00:02]} 25. Rxe4 {[%emt 0:00:08]} Re6 {[%emt 0:00:08]} 26. Rf4+ {[%emt 0:01:33]} Kg7 {[%emt 0:00:06]} 27. Rd7 {[%emt 0:01:19]} a6 {[%emt 0:00:58]} 28. Rd5 {[%emt 0:02:39]} Rc8 {[%emt 0:00:46]} 29. g4 {[%emt 0:01:42]} Re2 {[%emt 0:02:08]} 30. g5 {[%emt 0:01:47]} c4 {[%emt 0:01:55]} 31. Kd1 {[%emt 0:01:13]} Re6 {[%emt 0:03:39]} 32. Kd2 {[%emt 0:01:15]} Rc7 {[%emt 0:01:04]} 33. Rdd4 {[%emt 0:01:45]} Rec6 {[%emt 0:00:59]} 34. Rde4 {[%emt 0:00:25]} Rb6 {[%emt 0:02:24]} 35. Kc3 {[%emt 0:05:44]} Rcb7 {[%emt 0:00:01]} 36. Re5 {[%emt 0:03:10]} e6 {[%emt 0:01:13]} 37. a3 {[%emt 0:02:37]} Rxb2 {[%emt 0:01:37]} 38. Rxe6 {[%emt 0:00:24]} Ra2 {[%emt 0:01:13]} 39. Rxa6 {[%emt 0:00:33]} Rc7 {[%emt 0:01:24]} 40. Ra4 {[%emt 0:02:06]} h6 {[%emt 0:01:16]} 41. Ra6 {[%emt 0:06:31]} hxg5 {[%emt 0:00:16]} 42. hxg5 {[%emt 0:00:08]} Re7 {[%emt 0:01:57]} 43. Rxc4 {[%emt 0:06:24]} Kf7 {[%emt 0:00:21]} 44. Rf4+ {[%emt 0:01:43]} Ke8 {[%emt 0:00:06]} 45. Ra8+ {[%emt 0:00:01]} Kd7 {[%emt 0:00:06]} 46. Ra7+ {[%emt 0:00:08]} Ke8 {[%emt 0:00:07]} 47. Rxe7+ {[%emt 0:00:08]} Kxe7 {[%emt 0:00:05]} 48. Kb3 {[%emt 0:00:10]} Ra1 {[%emt 0:00:07]} 49. Rf6 {[%emt 0:00:15]} Rb1+ {[%emt 0:00:13]} 50. Ka2 {[%emt 0:00:06]} Rg1 {[%emt 0:00:22]} 1-0